Cogmind - Beta 14 @@@ ROGUE MODE // 2024.12.27 @ 17:03:32 Player: LightKnight Result: Destroyed by as-81935 with Assembled F-torch Performance ------------- Evolutions (1) 500 Regions Visited (4) 800 Robots Destroyed (28) 140 Value Destroyed (568) 568 Prototype IDs (0) 0 Alien Tech Used (0) 0 Bonus (10) 10 TOTAL SCORE: 2018 Bonus ------- High Alert Combat Kills 17 Friendly Fire -7 Cogmind --------- Core Integrity 0/400 Matter 300/300 Energy 115/125 System Corruption 0% Temperature Cool (20) Movement Core (50) Location -9/Mines Parts ------- > --- POWER (1) -------- Light Ion Engine > --- PROPULSION (3) --- (None) > --- UTILITY (3) ------ Improved Melee Analysis Suite > --- WEAPON (2) ------- (None) > --- INVENTORY (5) ---- Sensor Array Improved Signal Interpreter Corruption Screen Welding Torch Welding Torch Peak State ------------ > --- POWER ------------ Ion Engine > --- PROPULSION ------- Advanced Treads Advanced Treads Advanced Treads > --- UTILITY ---------- Small Storage Unit Improved Melee Analysis Suite Layered Light Armor Plating > --- WEAPON ----------- Mini Grenade Launcher Chainsword > --- INVENTORY -------- Sensor Array Improved Signal Interpreter Launcher Guidance Computer Transmission Jammer Component Analysis Suite Heavy Assault Rifle Mining Laser Welding Torch [Rating: 27] Favorites ----------- Power Ion Engine Engine Ion Engine Propulsion Advanced Treads Treads Advanced Treads Leg Aluminum Leg Wheel Wheel Utility Small Storage Unit Device Improved Terrain Scanner Storage Small Storage Unit Processor Improved Melee Analysis Suite Hackware Hacking Suite Protection Layered Light Armor Plating Weapon EM Pulse Gun Energy Gun EM Pulse Gun Ballistic Gun Heavy Assault Rifle Launcher Mini Grenade Launcher Special Weapon Mining Laser Slashing Weapon Chainsword Build | -11 -10 -10 -9 -9 ------- Run | Yrd Mat Min Mat Min Slots Evolved 2 | . . . 2 . Power . | . . . . . Propulsion 1 | . . . 1 . Utility 1 | . . . 1 . Weapon . | . . . . . Parts Attached 46 | 8 . . 17 21 Power 6 | 1 . . 1 4 Engine 6 | 1 . . 1 4 Core . | . . . . . Reactor . | . . . . . Propulsion 9 | 3 . . 5 1 Treads 4 | . . . 3 1 Leg 1 | 1 . . . . Wheel 4 | 2 . . 2 . Hover . | . . . . . Flight . | . . . . . Utility 9 | 2 . . 3 4 Device 3 | 1 . . . 2 Storage 1 | 1 . . . . Processor 1 | . . . . 1 Hackware 1 | . . . 1 . Protection 3 | . . . 2 1 Artifact . | . . . . . Weapon 22 | 2 . . 8 12 Energy Gun 4 | 1 . . 3 . Energy Cannon . | . . . . . Ballistic Gun 6 | 1 . . 2 3 Ballistic Cannon . | . . . . . Launcher 3 | . . . 1 2 Special Weapon 8 | . . . 2 6 Impact Weapon . | . . . . . Slashing Weapon 1 | . . . . 1 Piercing Weapon . | . . . . . Special Melee Weapon . | . . . . . Unidentified Prototypes . | . . . . . Parts Lost 16 | . . . . 16 Power 4 | . . . . 4 Propulsion 4 | . . . . 4 Utility 2 | . . . . 2 Weapon 6 | . . . . 6 Highest Loss Streak 5 | . . . . 5 To Critical Strikes . | . . . . . Average Slot Usage (%) 86 | . 100 100 94 79 Engine 10 | . 14 14 11 9 Treads 13 | . . . 2 22 Wheel 13 | . 28 28 29 . Device 4 | . 14 14 4 3 Storage 10 | . 14 14 11 9 Processor 3 | . . . . 6 Hackware 5 | . . . 7 4 Protection 5 | . . . 6 6 Energy Gun 3 | . 14 14 7 . Ballistic Gun 7 | . 14 14 9 4 Launcher 3 | . . . 1 4 Special Weapon 1 | . . . 3 1 Slashing Weapon 3 | . . . . 5 Peak Build Rating 27 | 9 9 9 23 27 Average Rating 15 | 5 9 9 13 19 On Entrance 10 | . 9 9 9 23 Naked Turns . | . . . . . Heaviest Build 20 | 15 15 15 20 18 Greatest Support 66 | 20 20 20 66 66 Greatest Overweight (x) 5 | 1 . . 5 1 Average Overweight (x) . | . . . . . Largest Inventory Capacity 8 | 8 8 8 8 8 Average Capacity 7 | 7 8 8 8 7 Most Carried 8 | 5 8 8 8 8 Average Carried 6 | 2 6 8 7 6 Final Capacity 8 | 8 8 8 8 8 Final Carried 8 | 5 8 8 8 8 Class Distribution -------------------- 77% | Mutant 22% | Scavenger-Mutant Dominant Class ---------------- Mutant | -10/Materials Mutant | -10/Mines Mutant | -9/Materials Mutant | -9/Mines Resources | -11 -10 -10 -9 -9 ----------- Run | Yrd Mat Min Mat Min Matter Collected 895 | 264 . . 234 397 Remotely . | . . . . . Salvage Created 835 | 94 . . 510 231 Parts 55 | 7 . . 36 12 Haulers Intercepted . | . . . . . Recyclers Shooed . | . . . . . Parts Field Recycled . | . . . . . Retrieved Matter . | . . . . . Parts Self-Destructed . | . . . . . Prevented . | . . . . . Kills | -11 -10 -10 -9 -9 ------- Run | Yrd Mat Min Mat Min Combat Hostiles Destroyed 35 | . . . 14 21 Melee 8 | . . . . 8 Guns 9 | . . . 7 2 Cannons 2 | . . . . 2 AOE 16 | . . . 7 9 Classes Destroyed 11 | 2 . . 6 3 Builder 1 | . . . . 1 Tunneler 2 | 1 . . 1 . Recycler 2 | 1 . . 1 . Operator 1 | . . . 1 . Watcher 2 | . . . 2 . Swarmer 11 | . . . 7 4 Grunt 3 | . . . 3 . Brawler 1 | . . . 1 . Sentry 3 | . . . 3 . Demolisher 2 | . . . . 2 Assembled 15 | . . . . 15 Best Kill Streak 12 | 1 . . 7 12 Combat Bots Only 11 | . . . 7 11 Max Kills in Single Turn 3 | 1 . . 3 3 Gunslinging 1 | . . . 1 . Exploded 3 | . . . 3 3 Melee 1 | . . . . 1 Uniques/NPCs Destroyed . | . . . . . Combat | -11 -10 -10 -9 -9 -------- Run | Yrd Mat Min Mat Min Hostile Shots Fired 163 | . 8 . 47 108 Missed 47 | . 4 . 18 25 Damage Taken 2324 | . 40 . 331 1953 Core 420 | . 18 . 54 348 Absorbed by Shields . | . . . . . Core Remaining (%) 96 | 100 . 92 . . Volleys Fired 76 | 7 . . 38 31 Largest 2 | 2 . . 2 2 Hottest 100 | 60 . . 100 100 Shots Fired 113 | 14 . . 61 38 Gun 75 | 14 . . 42 19 Cannon . | . . . . . Launcher 14 | . . . 5 9 Special 24 | . . . 14 10 Kinetic 45 | 7 . . 19 19 Thermal 24 | . . . 14 10 Explosive 14 | . . . 5 9 Electromagnetic 30 | 7 . . 23 . Robot Hit Streak 6 | 2 . . 6 5 Robot Miss Streak 4 | 4 . . 3 4 Penetration Max . | . . . . . Secondary Targets 3 | . . . 2 1 Max Gunslinging Chain 1 | . . . 1 1 Shots Hit Robots 66 | 5 . . 28 33 Core Hits 64 | 2 . . 24 38 Critical Kills . | . . . . . Critical Parts Destroyed . | . . . . . Critical Strikes 1 | . . . 1 . Corrupt 1 | . . . 1 . Melee Attacks 27 | . . . . 27 Impact . | . . . . . Slashing 27 | . . . . 27 Piercing . | . . . . . Sneak Attacks . | . . . . . Combat Hostiles . | . . . . . Follow-up Attacks . | . . . . . Damage Inflicted 2446 | 67 . . 867 1512 Guns 571 | 67 . . 332 172 Cannons . | . . . . . Explosions 1193 | . . . 535 658 Melee 602 | . . . . 602 Ramming 8 | . . . . 8 Kinetic 288 | 15 . . 101 172 Thermal 203 | . . . 131 72 Explosive 1062 | . . . 404 658 Electromagnetic 283 | 52 . . 231 . Impact . | . . . . . Slashing 602 | . . . . 602 Piercing . | . . . . . Highest Corruption . | . . . . . Average Corruption . | . . . . . Corruption Purged . | . . . . . Corruption Blocked . | . . . . . Overload Shots . | . . . . . Overflow Damage 33 | . . . . 33 Projectiles . | . . . . . Explosions 8 | . . . . 8 Melee 25 | . . . . 25 Knockbacks . | . . . . . Impact . | . . . . . Kinetic . | . . . . . Secondary . | . . . . . Self-Inflicted Damage 82 | . . . 36 46 Shots 3 | . . . 1 2 Rammed 5 | . . . . 5 Targets Rammed 5 | . . . . 5 Kicked . | . . . . . Crushed . | . . . . . Highest Temperature 66 | . . . 66 56 Average Temperature 20 | . . . 22 16 Received Heat Transfer 168 | . 18 . 54 96 Siege Activations . | . . . . . Robots Corrupted . | . . . . . Combat Hostiles . | . . . . . Parts Fried 1 | . . . 1 . Impact Corruptions . | . . . . . Robots Melted . | . . . . . Combat Hostiles . | . . . . . Parts Melted 1 | . . . 1 . Heat Transferred 300 | . . . 150 150 Parts Sabotaged . | . . . . . Parts Stolen . | . . . . . Parts Stripped . | . . . . . Power Chain Reactions 2 | . . . 2 . Alert | -11 -10 -10 -9 -9 ------- Run | Yrd Mat Min Mat Min Peak Influence 455 | 10 13 4 455 258 Initial 99 | . 6 4 1 99 Average 135 | 3 9 4 169 151 Maximum Alert Level 2 | . . . 2 1 Low Security (%) 51 | 100 100 100 41 44 Level 1 45 | . . . 52 55 Level 2 2 | . . . 6 . Level 3 . | . . . . . Level 4 . | . . . . . Level 5 . | . . . . . High Security . | . . . . . Max Security . | . . . . . Squads Dispatched 3 | . 2 . . 1 Investigation 2 | . 1 . . 1 Extermination . | . . . . . Reinforcement 1 | . 1 . . . Assault . | . . . . . Garrison . | . . . . . Intercept . | . . . . . Searches Triggered . | . . . . . Construction Impeded . | . . . . . Haulers Reinforced . | . . . . . Active Scanning Responses . | . . . . . Cargo Convoy Interrupts . | . . . . . Stealth | -11 -10 -10 -9 -9 --------- Run | Yrd Mat Min Mat Min Distress Signals 1 | . 1 . . . Communications Jammed . | . . . . . Distress Signals . | . . . . . Times Spotted 51 | . 8 . 18 25 Peak Tracking Total 7 | . 7 . 7 5 Tactical Retreats 4 | . . . 1 3 Traps | -11 -10 -10 -9 -9 ------- Run | Yrd Mat Min Mat Min Traps Triggered 1 | . 1 . . . Indirectly . | . . . . . Trap Hack Attempts . | . . . . . Triggered . | . . . . . Disarmed . | . . . . . Reprogrammed . | . . . . . Reused . | . . . . . Traps Extracted . | . . . . . Installed . | . . . . . Triggered . | . . . . . Machines | -11 -10 -10 -9 -9 ---------- Run | Yrd Mat Min Mat Min Machines Disabled . | . . . . . Max in Single Turn . | . . . . . Machines Repaired . | . . . . . Machines Dismantled . | . . . . . Machines Sabotaged . | . . . . . Overloaded Fab Kills . | . . . . . Hacking | -11 -10 -10 -9 -9 --------- Run | Yrd Mat Min Mat Min Machines Accessed 1 | . 1 . . . Terminals 1 | . 1 . . . Fabricators . | . . . . . Repair Stations . | . . . . . Recycling Units . | . . . . . Scanalyzers . | . . . . . Garrison Access . | . . . . . Total Hacks 3 | . 3 . . . Successful 2 | . 2 . . . Failed 1 | . 1 . . . Catastrophic . | . . . . . Database Lockouts . | . . . . . Manual . | . . . . . Terminals 3 | . 3 . . . Fabricators . | . . . . . Repair Stations . | . . . . . Recycling Units . | . . . . . Scanalyzers . | . . . . . Garrison Access . | . . . . . Terminal Hacks 2 | . 2 . . . Branch Access Points 1 | . 1 . . . Alert Level 1 | . 1 . . . Fabricator Hacks . | . . . . . Repair Station Hacks . | . . . . . Recycling Unit Hacks . | . . . . . Scanalyzer . | . . . . . Garrison Access Hacks . | . . . . . Unauthorized Hacks . | . . . . . Terminals . | . . . . . Fabricators . | . . . . . Repair Stations . | . . . . . Recycling Units . | . . . . . Scanalyzers . | . . . . . Garrison Access . | . . . . . Data Cores Recovered 1 | . . . 1 . Used . | . . . . . Hacking Detections . | . . . . . Full Trace Events . | . . . . . Feedback Events . | . . . . . Feedback Blocked . | . . . . . Robot Schematics Acquired . | . . . . . Robots Built . | . . . . . Authchips . | . . . . . Time . | . . . . . Total Robot Build Rating . | . . . . . Part Schematics Acquired . | . . . . . Parts Built . | . . . . . Authchips . | . . . . . Time . | . . . . . Total Part Build Rating . | . . . . . Parts Repaired . | . . . . . Time . | . . . . . Parts Recycled . | . . . . . Recycled Matter . | . . . . . Retrieved Matter . | . . . . . Retrieved Components . | . . . . . Parts Scanalyzed . | . . . . . Part Schematics Acquired . | . . . . . Parts Damaged . | . . . . . Bothacking | -11 -10 -10 -9 -9 ------------ Run | Yrd Mat Min Mat Min Used RIF Installer . | . . . . . Robots Hacked . | . . . . . Non-combat . | . . . . . Combat . | . . . . . Robot Hacks Applied . | . . . . . Relay Couplers Released . | . . . . . Fabnet Peak Effective % . | . . . . . Robots Rewired . | . . . . . Allies Hacked . | . . . . . Hacks Repelled . | . . . . . Allies | -11 -10 -10 -9 -9 -------- Run | Yrd Mat Min Mat Min Total Allies . | . . . . . Largest Group . | . . . . . Highest-Rated Group . | . . . . . Highest-Rated Ally . | . . . . . Total Orders . | . . . . . Ally Attacks . | . . . . . Total Damage . | . . . . . Kills . | . . . . . Allies Corrupted . | . . . . . Allies Melted . | . . . . . Intel | -11 -10 -10 -9 -9 ------- Run | Yrd Mat Min Mat Min Robot Analysis Total . | . . . . . Derelict Logs Recovered 2 | . . 1 . 1 Drone Launches . | . . . . . Drone Recoveries . | . . . . . Exploration | -11 -10 -10 -9 -9 ------------- Run | Yrd Mat Min Mat Min Turns Passed 1224 | 90 81 19 437 597 Spaces Moved 769 | 68 96 24 274 307 Core 78 | 16 . . 2 60 Treads 272 | . . . 25 247 Legs . | . . . . . Wheels 419 | 52 96 24 247 . Hover . | . . . . . Flight . | . . . . . Fastest Speed 50 | 50 80 80 86 50 Average Speed 104 | 78 80 80 95 127 Slowest Speed 300 | 100 80 80 300 145 Overloaded Moves . | . . . . . Propulsion Burnouts . | . . . . . Robots Hopped . | . . . . . Cave-ins Triggered . | . . . . . Exploration Rate (%) 24 | 4 28 12 25 51 Regions Visited 4 Branch Regions 2 Pre-discovered Areas 1 | . . . . 1 Known Exits Taken 2 | . 1 . 1 . Unknown Exits Taken 2 | 1 . 1 . . Scrap Searched 1 | . . . . 1 Spaces Dug 8 | . . . 6 2 Terrain Destroyed 130 | . . . 51 79 Melee 1 | . . . . 1 Projectile 15 | . . . 12 3 AOE 114 | . . . 39 75 Terrain Rammed . | . . . . . Walls Destroyed . | . . . . . Machines Disabled . | . . . . . Actions | -11 -10 -10 -9 -9 --------- Run | Yrd Mat Min Mat Min Total 988 | 87 100 23 365 413 Wait 18 | . . . 7 11 Move 765 | 67 95 23 273 307 Hop . | . . . . . Pick Up 21 | 4 4 . 10 3 Fast Attach 23 | 8 . . 6 9 Attach 7 | . . . 2 5 Detach 10 | 1 . . 4 5 Swap 16 | . . . 9 7 Drop 20 | . 1 . 16 3 Fire 76 | 7 . . 38 31 Melee 27 | . . . . 27 Ram 5 | . . . . 5 Kick . | . . . . . Crush . | . . . . . Escape Stasis . | . . . . . Rewire . | . . . . . Trap . | . . . . . Miscellaneous . | . . . . . Route ------- -11/Scrapyard -10/Materials -10/Mines -9/Materials (discovered 2 exits: Mat / *Min) -9/Mines (discovered 1 exit: *Mat) History --------- Turn | Location | Event 3 | -11/Scrapyard | Discovered new exit (range 16) 91 | -11/Scrapyard | Entered Materials 137 | -10/Materials | Identified exit to Mines 172 | -10/Materials | Entered Mines 172 | -10/Mines | Learned 2 Materials zone layouts 185 | -10/Mines | Discovered new exit (range 9) 191 | -10/Mines | Entered Materials 191 | -9/Materials | Evolved 2 slots: Propulsion x1, Utility x1 192 | -9/Materials | Identified exit to Mines 192 | -9/Materials | Identified exit to Materials 314 | -9/Materials | Build established: Mutant 591 | -9/Materials | Destroyed 7 combat bots 628 | -9/Materials | Entered Mines 650 | -9/Mines | Assembled infested the area 655 | -9/Mines | Assisted by a Guerilla fighting off Assembled 757 | -9/Mines | Lost 3 parts (1p1n1w) 767 | -9/Mines | Learned location of Storage (-8) 804 | -9/Mines | Discovered exit to Materials (range 10) 840 | -9/Mines | Met a Derelict shopkeep closing up shop 957 | -9/Mines | Core integrity fell below 50% 995 | -9/Mines | Lost 4 parts (1p1n2w) 1016 | -9/Mines | Destroyed 11 combat bots 1189 | -9/Mines | Core integrity fell below 20% 1193 | -9/Mines | Lost 5 parts (1p1n2u1w) 1225 | -9/Mines | Destroyed by as-81935 with Assembled F-torch Last Messages --------------- 01186_ Acquired 20 matter. 01188_ as-60642 destroyed. 01190_ K-01 Serf destroyed. 01195_ Mining Laser destroyed. 01198_ Lgt. Ion Engine destroyed. 01198_ K-01 Serf collects debris. 01199_ Acquired Mining Laser. 01201_ as-06476 destroyed. [Achievement: Exterminator] 01202_ K-01 Serf collects debris. 01208_ Mining Laser destroyed. 01208_ U-05 Engineer lays Concrete. 01209_ Acquired 5 matter. 01210_ K-01 Serf collects debris. 01211_ Acquired Welding Torch. 01213_ Acquired Lgt. Ion Engine. 01213_ U-05 Engineer lays Concrete. 01214_ K-01 Serf collects debris. 01214_ U-05 Engineer lays Concrete. 01216_ Acquired 20 matter. Map ----- +----------------------------------------------------+ | ????????# #??????????????????????????????? | | ????????# #??????????????????????????????? | | ????????# """ ####???????###?????????????????? | | ????????# """[ [ #??????? ##????????????????? | | ????????# """ * * #?????? #????????????????? | | ????????# """ [ #?????? #????????????????? | | ????????# #????? #?????????????????? | | ????????# # #????# #??????????????????? | | ????????###### # ## #?### #???????????????????? | | ???????????#### #### #?#$ #????????????????????? | | ???????????# #?# ?? #?????????????????????? | | ???????????# ## #?# #??# #?????###??????????????? | | ???????????# ## ### #### #???### #??????????????? | | ???????????# ## #?## #??????????????? | | ???????????# ########### ## #???????????????? | | ???????????# #????????## # #?????????????????? | | ??????????? ???????## #??????????????????? | | ??????????? ???????# ##??????????????????? | | ??????????? ???????# ##???????????????????? | | ??????????? #??????## #?????##?????????????? | | ?????????? #?????## # ##??? ##????????????? | | ?????????? #?????# # # ##? #????????????? | | ??????????"" ??????# # ##### #????????????? | | ??????????"" ??????## ## ## #????????????? | | ?????????""" ??????# #% ## ### #?????????????? | | ???????????? ??????# # @ #??????????????????? | | ???????????? ??????# # a ##?????????????????? | | ???????????? ????### #######a ###????????????????? | | ????????????#????# ! ### ## #????????????????? | | ?????????????????# # !=|=!##%# ##????????????????? | | ?????????????????# #!%%*%! # #???????????????? | | ?????????????????## !=!!%!* # #???????????????? | | ?????????????????# *|%###### # #???????????????? | | ?????????????????# #!*!# # ###???????????????? | | ?????????????????####|%## # #????????????????? | | ????????????????????#==###### ##????????????????? | | ????????????????????#=!*#????###?????####????????? | | ????????????????????###%#???????????## ##???????? | | ??????????????????????#=##?????????## ##??????? | | ?????????????????????## =##???????## ######?? | | ???????????????####?## %!!#??????## #?? | | ???????????##### ### ==!%##?????# #?? | | ???????????# =%%*###???# #?? | | ????######?# ### !%!=! ##??## ### #?? | | ????# #?# #?#######!= % ##### *###?## ##? | | ????# ### #???????##!=!! %=! % #????# #? | | ????# T## ######???#%%=* %!%! % #????# #? | | ????# #?# #??##!%=!# #########????# #? | | ????# #?###### #??# ! !## ##????????#### #? | | ##### #????### #### !#######??????# #? | +----------------------------------------------------+ Best States ------------- Heat Dissipation 28 Energy Generation 12 Energy Capacity 265 Matter Stores 300 Matter Capacity 300 Sight Range 16 Robot Scan Range 14 Terrain Scan Range 16 Terrain Scan Density 10 Armor Coverage 150 Propulsion Shielding 66 Evasion (%) 50 Melee Accuracy 6 Recoil Reduction 3 Offensive Hacking 10 Item Schematics ----------------- None Robot Schematics ------------------ None Fabricated ------------ Nothing Alien Tech Used ----------------- None Achievements -------------- Exterminator Challenges ------------ None Game ------ Seed RefineryStealthShotgun Manual? 0 Play Time 00:26:41 Cumulative 60.3 hours Start 2024.12.27 @ 16:38:36 End 2024.12.27 @ 17:03:32 Sessions 2 Manual Loads 0 Difficulty Rogue Special Mode None Game No. 54 Rogue 54 Adventurer 0 Explorer 0 Win Type - Total 0 Types 0/0/0/0/0/0/0/0/0 Lore% 22 Gallery% 39 Achievement% 28 Wizard Run 0 Options --------- Layout 2 ASCII 0 Keyboard 1 Movement Arrows Keybinds 0 Fullscreen 1 Font 24/Proggy Map View 50x44 Zoom Use 0% Tactical HUD 1 Map Filters NONE Filters NONE Steam 1 RUN: 4e613998-9eae-4553-9e14-7c6a0c3121b5